{"text_format":"3","workbook":"xlsx","n_sheets":2,"sheets":["RSVP Tracker","RSVP Summary"],"not_rendered":{"charts":2,"defined_names":22},"read":"whole","date_system":"1900"}

{"sheet":"RSVP Tracker","index":0,"n_rows":15,"n_cols":15,"rows_kept":15,"merged":[[0,3,0,4],[0,5,0,7],[1,3,1,14]]}
[{"$nulls":5},"SÚHRN POTVRDENÍ ÚČASTI"]
[null,"DÁTUM SVADBY",null,"evidencia pozvaní na svadbu"]
[null,{"$f":"TODAY()+283","v":"2018-12-01"},null,"MENO HOSŤA","ODOSLANÉ?","POTVRDENIE ÚČASTI","SKUPINA","HOSŤ","VZŤAH","ADRESA","MESTO","KRAJ","PSČ","TELEFÓN","KONTAKTNÝ E-MAIL"]
[null,"ZOSTÁVAJÚCE DNI",null,"Meno 1","Áno","Áno",1,"Nastávajúci partner 1","Brat","Adresa","Mesto","Kraj","PSČ","Telefón","meno@example.com"]
[null,{"$f":"DaysRemaining","v":283},null,"Názov 2","Áno","Nie",3,"Nastávajúci partner 1","Priateľ","Adresa","Mesto","Kraj","PSČ","Telefón","meno@example.com"]
[null,"ZÚČASTNIA SA",null,"Meno 3","Áno","Áno",1,"Iné","Priateľ","Adresa","Mesto","Kraj","PSČ","Telefón","meno@example.com"]
[null,{"$f":"TotalAttending","v":12},null,"Meno 4","Áno","Nie",2,"Nastávajúci partner 2","Priateľ","Adresa","Mesto","Kraj","PSČ","Telefón","meno@example.com"]
[null,"NEZÚČASTNIA SA",null,"Meno 5","Áno","Áno",2,"Nastávajúci partner 2","Priateľ","Adresa","Mesto","Kraj","PSČ","Telefón","meno@example.com"]
[null,{"$f":"TotalNotAttending","v":6},null,"Meno 6","Áno","Nezáväzne",null,"Iné","Priateľ","Adresa","Mesto","Kraj","PSČ","Telefón","meno@example.com"]
[null,"ZOSTÁVAJÚCI",null,"Meno 7","Áno","Áno",2,"Nastávajúci partner 2","Priateľ","Adresa","Mesto","Kraj","PSČ","Telefón","meno@example.com"]
[null,{"$f":"OutstandingRSVP","v":1},null,"Meno 8","Áno","Nie",1,"Iné","Priateľ","Adresa","Mesto","Kraj","PSČ","Telefón","meno@example.com"]
[{"$nulls":3},"Meno 9","Áno","Áno",4,"Nastávajúci partner 1","Priateľ","Adresa","Mesto","Kraj","PSČ","Telefón","meno@example.com"]
[{"$nulls":3},"Meno 10","Áno","Áno",2,"Nastávajúci partner 1","Priateľ","Adresa","Mesto","Kraj","PSČ","Telefón","meno@example.com"]
[{"$nulls":3},"Meno 11","Áno",null,null,"Nastávajúci partner 2","Brat","Adresa","Mesto","Kraj","PSČ","Telefón","meno@example.com"]
[{"$nulls":3},"CELKOVE:",{"$f":"COUNTIF('RSVP Tracker'!$E$4:$E$14,\"Yes\")","v":11},{"$f":"COUNTA('RSVP Tracker'!$F$4:$F$14)","v":10},{"$f":"SUBTOTAL(109,tblInvites[SKUPINA])","v":18}]

{"sheet":"RSVP Summary","index":1,"n_rows":11,"n_cols":15,"rows_kept":11,"merged":[[0,3,0,4],[0,5,0,8],[1,3,1,11],[2,3,6,3],[2,4,6,4],[7,3,11,3],[7,4,11,4]]}
[{"$nulls":3},"EVIDENCIA POTVRDENÍ ÚČASTI"]
[null,"DÁTUM SVADBY",null,"súhrn potvrdení účasti",{"$nulls":10},"poznámky"]
[null,{"$f":"WeddingDate","v":"2018-12-01"},null,"ÁNO","V tejto bunke je skupinový pruhový graf zobrazujúci typy hostí, ktorí potvrdili účasť."]
[null,"ZOSTÁVAJÚCE DNI",{"$nulls":3},"INÉ",{"$f":"IFERROR(SUMIFS(tblInvites[SKUPINA],tblInvites[HOSŤ],\"=Other\",tblInvites[POTVRDENIE ÚČASTI],\"Yes\"),0)","v":1},{"$f":"tblInvites[[#Totals],[SENT?]]","v":11}]
[null,{"$f":"DaysRemaining","v":283},{"$nulls":3},"NASTÁVAJÚCI PARTNER 2",{"$f":"IFERROR(SUMIFS(tblInvites[SKUPINA],tblInvites[HOSŤ],\"=Spouse-to-be 2\",tblInvites[POTVRDENIE ÚČASTI],\"Yes\"),0)","v":4},{"$f":"tblInvites[[#Totals],[SENT?]]","v":11}]
[null,"ZÚČASTNIA SA",{"$nulls":3},"NASTÁVAJÚCI PARTNER 1",{"$f":"IFERROR(SUMIFS(tblInvites[SKUPINA],tblInvites[HOSŤ],\"=Spouse-to-be 1\",tblInvites[POTVRDENIE ÚČASTI],\"Yes\"),0)","v":7},{"$f":"tblInvites[[#Totals],[SENT?]]","v":11}]
[null,{"$f":"TotalAttending","v":12}]
[null,"NEZÚČASTNIA SA",null,"NIE","V tejto bunke je skupinový pruhový graf zobrazujúci typy hostí, ktorí potvrdili neúčasť."]
[null,{"$f":"TotalNotAttending","v":6},{"$nulls":3},"INÉ",{"$f":"IFERROR(SUMIFS(tblInvites[SKUPINA],tblInvites[HOSŤ],\"=Other\",tblInvites[POTVRDENIE ÚČASTI],\"No\"),0)","v":1},{"$f":"tblInvites[[#Totals],[SENT?]]","v":11}]
[null,"ZOSTÁVAJÚCI",{"$nulls":3},"NASTÁVAJÚCI PARTNER 2",{"$f":"IFERROR(SUMIFS(tblInvites[SKUPINA],tblInvites[HOSŤ],\"=Spouse-to-be 2\",tblInvites[POTVRDENIE ÚČASTI],\"No\"),0)","v":2},{"$f":"tblInvites[[#Totals],[SENT?]]","v":11}]
[null,{"$f":"OutstandingRSVP","v":1},{"$nulls":3},"NASTÁVAJÚCI PARTNER 1",{"$f":"IFERROR(SUMIFS(tblInvites[SKUPINA],tblInvites[HOSŤ],\"=Spouse-to-be 1\",tblInvites[POTVRDENIE ÚČASTI],\"No\"),0)","v":3},{"$f":"tblInvites[[#Totals],[SENT?]]","v":11}]